Cogmind - Beta 13 @@@ ROGUE MODE // 2024.04.02 @ 10:15:22 Player: Drako Result: Core destroyed Performance ------------- Evolutions (2) 1000 Regions Visited (4) 800 Robots Destroyed (74) 370 Value Destroyed (1940) 1940 Prototype IDs (4) 80 Alien Tech Used (0) 0 Bonus (139) 139 TOTAL SCORE: 4329 Bonus ------- High Alert Combat Kills 63 Follower Combat Kills 76 Cogmind --------- Core Integrity 0/550 Matter 111/300 Energy 25/100 System Corruption 0% Temperature Critical (740) Movement Core (1050) Ox20 Location -8/Materials Parts ------- > --- POWER (1) -------- Light Nuclear Core > --- PROPULSION (2) --- Light Treads Light Treads > --- UTILITY (6) ------ Large Storage Unit Improved Sensor Array Particle Charger Heavy Armor Plating Hardened Light Armor Plating > --- WEAPON (2) ------- Heavy Particle Cannon Heavy Particle Cannon > --- INVENTORY (15) --- Nuclear Core Nuclear Core Advanced Weight Redist. System Heavy Assault Rifle Heavy Assault Rifle Enhanced Autogun Peak State ------------ > --- POWER ------------ Improved Ion Engine > --- PROPULSION ------- Improved Treads Improved Treads > --- UTILITY ---------- Large Storage Unit Advanced Weight Redist. System Improved Sensor Array Light Armor Plating Light Armor Plating Light Armor Plating > --- WEAPON ----------- Enhanced Autogun Enhanced Autogun > --- INVENTORY -------- Nuclear Core Nuclear Core Light Nuclear Core Light Treads Light Treads Improved Heat Sink Improved Heat Sink Sensor Array Particle Charger Hardened Light Armor Plating Heavy Particle Cannon Heavy Particle Cannon Heavy Assault Rifle Heavy Assault Rifle [Rating: 27] Favorites ----------- Power Improved Ion Engine Engine Improved Ion Engine Power Core Light Nuclear Core Propulsion Improved Treads Treads Improved Treads Leg Improved Aluminum Leg Wheel Wheel Flight Unit Improved Flight Unit Utility Light Armor Plating Device Sensor Array Storage Large Storage Unit Processor Signal Interpreter Hackware Hacking Suite Protection Light Armor Plating Weapon Enhanced Autogun Energy Gun Improved EM Shotgun Energy Cannon Heavy Particle Cannon Ballistic Gun Enhanced Autogun Build | -11 -10 -9 -9 -8 ------- Run | Yrd Mat Mat Min Mat Slots Evolved 4 | . . 2 . 2 Power . | . . . . . Propulsion . | . . . . . Utility 4 | . . 2 . 2 Weapon . | . . . . . Parts Attached 63 | 8 12 29 1 13 Power 8 | 1 2 4 . 1 Engine 6 | 1 2 3 . . Core 2 | . . 1 . 1 Reactor . | . . . . . Propulsion 18 | 4 4 8 . 2 Treads 5 | . . 3 . 2 Leg 7 | 2 2 3 . . Wheel 5 | 2 2 1 . . Hover . | . . . . . Flight 1 | . . 1 . . Utility 24 | 1 3 11 1 8 Device 12 | . 1 5 . 6 Storage 2 | 1 1 . . . Processor 1 | . . 1 . . Hackware 1 | . 1 . . . Protection 8 | . . 5 1 2 Artifact . | . . . . . Weapon 13 | 2 3 6 . 2 Energy Gun 1 | . . 1 . . Energy Cannon 2 | . . . . 2 Ballistic Gun 10 | 2 3 5 . . Ballistic Cannon . | . . . . . Launcher . | . . . . . Special Weapon . | . . . . . Impact Weapon . | . . . . . Slashing Weapon . | . . . . . Piercing Weapon . | . . . . . Special Melee Weapon . | . . . . . Unidentified Prototypes 4 | . . 4 . . Parts Lost 20 | . 2 9 . 9 Power 2 | . . 1 . 1 Propulsion 5 | . . 3 . 2 Utility 9 | . 1 3 . 5 Weapon 4 | . 1 2 . 1 Highest Loss Streak 9 | . 2 3 . 9 To Critical Strikes . | . . . . . Average Slot Usage (%) 98 | . 97 98 100 87 Engine 9 | . 13 8 11 5 Core 1 | . . 2 . 3 Treads 11 | . . 12 22 14 Leg 5 | . 8 7 . . Wheel 5 | . 19 1 . . Device 10 | . . 15 2 19 Storage 11 | . 14 11 11 9 Processor 3 | . . 6 . . Hackware 2 | . 12 . . . Protection 12 | . . 10 30 19 Ballistic Gun 22 | . 27 21 22 8 Naked Turns . | . . . . . Heaviest Build 43 | 12 29 40 42 43 Greatest Support 55 | 26 26 46 46 55 Greatest Overweight (x) 3 | 2 2 3 . 1 Average Overweight (x) . | . . . . . Largest Inventory Capacity 15 | 8 15 15 15 15 Average Capacity 14 | 7 14 15 15 15 Most Carried 15 | 8 15 15 15 14 Average Carried 13 | 4 11 14 14 9 Final Capacity 15 | 8 15 15 15 15 Final Carried 15 | 6 14 14 15 6 Class Distribution -------------------- 52% | Mutant 47% | Scavenger-Mutant Dominant Class ---------------- Mutant | -10/Materials Scavenger-Mutant | -9/Materials Scavenger-Mutant | -9/Mines Scavenger-Mutant | -8/Materials Resources | -11 -10 -9 -9 -8 ----------- Run | Yrd Mat Mat Min Mat Matter Collected 2111 | 279 367 1121 90 254 Remotely . | . . . . . Salvage Created 2553 | . 583 1605 55 310 Parts 173 | . 44 110 5 14 Haulers Intercepted 1 | . 1 . . . Recyclers Shooed 2 | . . 2 . . Parts Field Recycled . | . . . . . Retrieved Matter . | . . . . . Parts Self-Destructed . | . . . . . Prevented . | . . . . . Kills | -11 -10 -9 -9 -8 ------- Run | Yrd Mat Mat Min Mat Combat Hostiles Destroyed 59 | . 15 37 3 4 Guns 57 | . 15 37 3 2 Cannons 2 | . . . . 2 Classes Destroyed 9 | . 5 3 1 . Worker 2 | . . 1 . 1 Tunneler 1 | . . . 1 . Hauler 1 | . 1 . . . Recycler 1 | . . 1 . . Operator 1 | . 1 . . . Watcher 9 | . 3 4 . 2 Swarmer 20 | . 6 11 3 . Grunt 28 | . 9 16 . 3 Sentry 11 | . . 10 . 1 Best Kill Streak 9 | . 4 9 3 4 Combat Bots Only 7 | . 3 7 3 2 Max Kills in Single Turn 2 | . 2 1 2 1 Gunslinging 1 | . 1 . 1 . Exploded . | . . . . . Melee . | . . . . . Uniques/NPCs Destroyed . | . . . . . Combat | -11 -10 -9 -9 -8 -------- Run | Yrd Mat Mat Min Mat Hostile Shots Fired 392 | . 55 204 9 124 Missed 111 | . 19 64 2 26 Damage Taken 3903 | . 408 1591 58 1846 Core 991 | . 121 282 . 588 Absorbed by Shields . | . . . . . Regen/Repaired (Parts) 71 | . . 71 . . Core Remaining (%) 60 | 100 51 . 29 . Volleys Fired 246 | . 49 134 10 53 Largest 2 | . 2 2 2 2 Hottest 150 | . 40 50 50 150 Shots Fired 453 | . 90 255 20 88 Gun 422 | . 90 255 20 57 Cannon 31 | . . . . 31 Launcher . | . . . . . Special . | . . . . . Kinetic 422 | . 90 255 20 57 Thermal 31 | . . . . 31 Explosive . | . . . . . Electromagnetic . | . . . . . Robot Hit Streak 12 | . 12 7 8 7 Robot Miss Streak 7 | . 4 7 4 4 Penetration Max . | . . . . . Secondary Targets 15 | . 3 10 1 1 Max Gunslinging Chain 1 | . 1 1 1 1 Shots Hit Robots 262 | . 57 141 10 54 Core Hits 115 | . 30 65 4 16 Critical Kills . | . . . . . Critical Parts Destroyed . | . . . . . Critical Strikes . | . . . . . Melee Attacks . | . . . . . Impact . | . . . . . Slashing . | . . . . . Piercing . | . . . . . Sneak Attacks . | . . . . . Combat Hostiles . | . . . . . Follow-up Attacks . | . . . . . Damage Inflicted 4297 | . 749 2296 167 1085 Guns 3816 | . 749 2296 167 604 Cannons 481 | . . . . 481 Explosions . | . . . . . Melee . | . . . . . Ramming . | . . . . . Kinetic 3816 | . 749 2296 167 604 Thermal 481 | . . . . 481 Explosive . | . . . . . Electromagnetic . | . . . . . Impact . | . . . . . Slashing . | . . . . . Piercing . | . . . . . Highest Corruption . | . . . . . Average Corruption . | . . . . . Corruption Purged . | . . . . . Corruption Blocked . | . . . . . Overload Shots . | . . . . . Overflow Damage 16 | . . . . 16 Projectiles 16 | . . . . 16 Explosions . | . . . . . Melee . | . . . . . Knockbacks . | . . . . . Impact . | . . . . . Kinetic . | . . . . . Secondary . | . . . . . Self-Inflicted Damage . | . . . . . Shots . | . . . . . Rammed . | . . . . . Targets Rammed . | . . . . . Kicked . | . . . . . Crushed . | . . . . . Highest Temperature 740 | . 2 166 179 740 Average Temperature 129 | . 2 48 77 226 Received Heat Transfer 1536 | . 204 549 . 783 Effects 19 | . . . . 19 Shutdowns 1 | . . . . 1 Energy Bleed 2 | . . . . 2 Interference 4 | . . . . 4 Matter Decay 4 | . . . . 4 Short Circuit 5 | . . . . 5 Damage (core) 3 | . . . . 3 Siege Activations . | . . . . . Robots Corrupted . | . . . . . Combat Hostiles . | . . . . . Parts Fried . | . . . . . Impact Corruptions . | . . . . . Robots Melted . | . . . . . Combat Hostiles . | . . . . . Parts Melted . | . . . . . Heat Transferred 703 | . . . . 703 Parts Sabotaged . | . . . . . Parts Stolen . | . . . . . Parts Stripped . | . . . . . Power Chain Reactions . | . . . . . Alert | -11 -10 -9 -9 -8 ------- Run | Yrd Mat Mat Min Mat Peak Influence 601 | . 270 601 301 105 Initial 216 | . . 69 216 . Average 235 | . 120 332 152 61 Maximum Alert Level 2 | . 1 2 1 . Low Security (%) 51 | 100 87 30 53 100 Level 1 25 | . 12 26 46 . Level 2 23 | . . 42 . . Level 3 . | . . . . . Level 4 . | . . . . . Level 5 . | . . . . . High Security . | . . . . . Max Security . | . . . . . Squads Dispatched 9 | . 5 3 . 1 Investigation 5 | . 2 3 . . Extermination . | . . . . . Reinforcement 4 | . 3 . . 1 Assault . | . . . . . Garrison . | . . . . . Intercept . | . . . . . Searches Triggered . | . . . . . Construction Impeded . | . . . . . Haulers Reinforced . | . . . . . Active Scanning Responses . | . . . . . Cargo Convoy Interrupts . | . . . . . Stealth | -11 -10 -9 -9 -8 --------- Run | Yrd Mat Mat Min Mat Distress Signals 3 | . . 2 . 1 Communications Jammed . | . . . . . Distress Signals . | . . . . . Times Spotted 93 | . 23 52 4 14 Peak Tracking Total 9 | . 4 9 3 4 Tactical Retreats 8 | . 2 4 . 2 Traps | -11 -10 -9 -9 -8 ------- Run | Yrd Mat Mat Min Mat Traps Triggered 7 | . 5 2 . . Indirectly . | . . . . . Trap Hack Attempts . | . . . . . Triggered . | . . . . . Disarmed 6 | . . 6 . . Reprogrammed . | . . . . . Reused . | . . . . . Traps Extracted . | . . . . . Installed . | . . . . . Triggered . | . . . . . Machines | -11 -10 -9 -9 -8 ---------- Run | Yrd Mat Mat Min Mat Machines Disabled 2 | . . 2 . . Max in Single Turn 1 | . . 1 . . Machines Repaired . | . . . . . Machines Dismantled . | . . . . . Machines Sabotaged . | . . . . . Overloaded Fab Kills . | . . . . . Hacking | -11 -10 -9 -9 -8 --------- Run | Yrd Mat Mat Min Mat Machines Accessed 11 | . 3 8 . . Terminals 7 | . 3 4 . . Fabricators . | . . . . . Repair Stations 2 | . . 2 . . Recycling Units 1 | . . 1 . . Scanalyzers 1 | . . 1 . . Garrison Access . | . . . . . Total Hacks 23 | . 4 19 . . Successful 15 | . 3 12 . . Failed 8 | . 1 7 . . Catastrophic 3 | . 1 2 . . Database Lockouts . | . . . . . Manual . | . . . . . Terminals 11 | . 4 7 . . Fabricators . | . . . . . Repair Stations 7 | . . 7 . . Recycling Units 3 | . . 3 . . Scanalyzers 2 | . . 2 . . Garrison Access . | . . . . . Terminal Hacks 6 | . 3 3 . . Disarm Traps 1 | . . 1 . . Investigation Status 1 | . . 1 . . Assault Status 1 | . 1 . . . Recall Reinforcements 1 | . 1 . . . Hauler Manifests 1 | . 1 . . . Zone Layout 1 | . . 1 . . Fabricator Hacks . | . . . . . Repair Station Hacks 4 | . . 4 . . Scan Component 2 | . . 2 . . Repair 2 | . . 2 . . Recycling Unit Hacks 3 | . . 3 . . Process 1 | . . 1 . . Report Inventory 1 | . . 1 . . Retrieve Matter 1 | . . 1 . . Scanalyzer 2 | . . 2 . . Insert Component 1 | . . 1 . . Analyze 1 | . . 1 . . Garrison Access Hacks . | . . . . . Unauthorized Hacks . | . . . . . Terminals . | . . . . . Fabricators . | . . . . . Repair Stations . | . . . . . Recycling Units . | . . . . . Scanalyzers . | . . . . . Garrison Access . | . . . . . Data Cores Recovered . | . . . . . Used . | . . . . . Hacking Detections 9 | . 2 7 . . Full Trace Events 3 | . 1 2 . . Feedback Events . | . . . . . Feedback Blocked . | . . . . . Robot Schematics Acquired . | . . . . . Robots Built . | . . . . . Authchips . | . . . . . Time . | . . . . . Total Robot Build Rating . | . . . . . Part Schematics Acquired 1 | . . 1 . . Parts Built . | . . . . . Authchips . | . . . . . Time . | . . . . . Total Part Build Rating . | . . . . . Parts Repaired 2 | . . 2 . . Time 52 | . . 52 . . Parts Recycled . | . . . . . Recycled Matter 212 | . . 212 . . Retrieved Matter 257 | . . 257 . . Retrieved Components . | . . . . . Parts Scanalyzed 1 | . . 1 . . Part Schematics Acquired 1 | . . 1 . . Parts Damaged 1 | . . 1 . . Bothacking | -11 -10 -9 -9 -8 ------------ Run | Yrd Mat Mat Min Mat Used RIF Installer . | . . . . . Robots Hacked . | . . . . . Non-combat . | . . . . . Combat . | . . . . . Robot Hacks Applied . | . . . . . Relay Couplers Released . | . . . . . Fabnet Peak Effective % . | . . . . . Robots Rewired . | . . . . . Allies Hacked . | . . . . . Hacks Repelled . | . . . . . Allies | -11 -10 -9 -9 -8 -------- Run | Yrd Mat Mat Min Mat Total Allies 2 | . . . 2 . Largest Group 2 | . . . 2 2 Highest-Rated Group 45 | . . . 45 45 Highest-Rated Ally 31 | . . . 31 31 Total Orders . | . . . . . Ally Attacks 35 | . . . . 35 Total Damage 419 | . . . . 419 Kills 4 | . . . . 4 Allies Corrupted . | . . . . . Allies Melted . | . . . . . Intel | -11 -10 -9 -9 -8 ------- Run | Yrd Mat Mat Min Mat Robot Analysis Total . | . . . . . Derelict Logs Recovered 2 | . . . 2 . Drone Launches . | . . . . . Drone Recoveries . | . . . . . Exploration | -11 -10 -9 -9 -8 ------------- Run | Yrd Mat Mat Min Mat Turns Passed 4884 | 93 1026 2645 856 264 Spaces Moved 2642 | 71 692 1327 509 43 Core 8 | 8 . . . . Treads 1381 | . . 829 509 43 Legs 555 | 17 149 389 . . Wheels 698 | 46 543 109 . . Hover . | . . . . . Flight . | . . . . . Fastest Speed 50 | 50 90 105 160 160 Average Speed 151 | 101 121 164 160 195 Slowest Speed 260 | 150 190 260 160 240 Overloaded Moves . | . . . . . Propulsion Burnouts . | . . . . . Robots Hopped . | . . . . . Cave-ins Triggered . | . . . . . Exploration Rate (%) 56 | 5 97 95 79 7 Regions Visited 4 Branch Regions 1 Pre-discovered Areas 1 | . . . 1 . Known Exits Taken . | . . . . . Unknown Exits Taken 4 | 1 1 1 1 . Scrap Searched 1 | . . . 1 . Spaces Dug . | . . . . . Terrain Destroyed 10 | . . . . 10 Melee . | . . . . . Projectile 10 | . . . . 10 AOE . | . . . . . Terrain Rammed . | . . . . . Walls Destroyed . | . . . . . Machines Disabled . | . . . . . Actions | -11 -10 -9 -9 -8 --------- Run | Yrd Mat Mat Min Mat Total 3204 | 90 788 1629 539 158 Wait 135 | . 4 70 17 44 Move 2638 | 70 691 1326 508 43 Hop . | . . . . . Pick Up 83 | 12 24 42 2 3 Fast Attach . | . . . . . Attach 37 | 6 9 12 . 10 Detach . | . . . . . Swap 26 | 2 3 17 1 3 Drop 39 | . 8 28 1 2 Fire 246 | . 49 134 10 53 Melee . | . . . . . Ram . | . . . . . Kick . | . . . . . Crush . | . . . . . Escape Stasis . | . . . . . Rewire . | . . . . . Trap . | . . . . . Miscellaneous . | . . . . . Route ------- -11/Scrapyard -10/Materials (discovered 4 exits: *Mat x3 / [*Min]) -9/Materials (discovered 6 exits: [*Mat x3] / *Min / [*Sto x2]) -9/Mines (discovered 2 exits: [*Mat x2]) -8/Materials History --------- Turn | Location | Event 2 | -11/Scrapyard | Met Revision 17 23 | -11/Scrapyard | Discovered new exit (range 16) 94 | -11/Scrapyard | Entered Materials 302 | -10/Materials | Build established: Mutant 355 | -10/Materials | Discovered new exit (range 7) 474 | -10/Materials | Discovered new exit (range 11) 690 | -10/Materials | Discovered new exit (range 15) 782 | -10/Materials | Discovered new exit (range 6) 1120 | -10/Materials | Entered another Materials area 1120 | -9/Materials | Evolved 2 slots: Utility x2 1175 | -9/Materials | Repaired Ion Engine 1603 | -9/Materials | Discovered new exit (range 8) 1688 | -9/Materials | Build established: Scavenger-Mutant 1695 | -9/Materials | Discovered new exit (range 16) 1897 | -9/Materials | Discovered new exit (range 15) 1912 | -9/Materials | Discovered new exit (range 10) 2057 | -9/Materials | Core integrity fell below 50% 2092 | -9/Materials | Lost 3 parts (1p1n1u) 2106 | -9/Materials | Destroyed 7 combat bots 2216 | -9/Materials | Discovered new exit (range 16) 2855 | -9/Materials | Repaired Sensor Array 3219 | -9/Materials | Build established: Mutant 3301 | -9/Materials | Discovered new exit (range 10) 3765 | -9/Materials | Entered Mines 3823 | -9/Mines | Learned location of Recycling (-9) 4077 | -9/Mines | Joined a pair of Derelicts in attacking an 0b10 outpost 4136 | -9/Mines | Learned Materials stockpile data 4216 | -9/Mines | Discovered new exit (range 6) 4301 | -9/Mines | Build established: Scavenger-Mutant 4320 | -9/Mines | Discovered new exit (range 3) 4621 | -9/Mines | Entered Materials 4621 | -8/Materials | Accompanied by 2 allies 4621 | -8/Materials | Evolved 2 slots: Utility x2 4626 | -8/Materials | Led the pair of lost Derelicts to an unsafe place 4825 | -8/Materials | Lost 9 parts (1p2n5u1w) 4877 | -8/Materials | Core integrity fell below 50% 4879 | -8/Materials | Core integrity fell below 20% 4886 | -8/Materials | Core destroyed Last Messages --------------- 04855_ K-01 Serf collects debris. 04857_ Overheating: System interference. 04857_ Hvy. Particle Cannon temporarily disabled. 04858_ Lgt. Nuclear Core broken. 04858_ Overheating: Short circuit. 04858_ K-01 Serf collects debris. 04860_ Overheating: System interference. 04860_ Hvy. Particle Cannon temporarily disabled. 04862_ K-01 Serf collects debris. 04877_ Overheating: Core damaged (-110). 04878_ Overheating: Energy bleed (-9). 04879_ Overheating: Core damaged (-104). 04880_ Hvy. Particle Cannon broken. 04880_ Overheating: Short circuit. 04881_ Overheating: Matter decay (-50). 04882_ Overheating: Matter decay (-38). 04884_ Overheating: Matter decay (-12). 04886_ Overheating: Core damaged (-104). Map ----- +----------------------------------------------------+ | ??????????? #???????????????????????????? | | ??????????? #???????????????????????????? | | ??????????? #???????????????????????????? | | ??????????? #???????????????????????????? | | ??????????# #???????????????????????????? | | ??????????# #???????????????????????????? | | ??????????# +???????????????????????????? | | ??????????# #???????????????????????????? | | ??????????# #???????????????????????????? | | ??????##### #???????????????????????????? | | ??????# #???????????????????????????? | | ??????# = #???????????????????????????? | | ??????# #???????????????????????????? | | ??######### #???????????????????????????? | | ??? ??# #???????????????????????????? | | ???"" """ # #???????????????????????????? | | ???"" """ + #???????????????????????????? | | ? """ """ # [#???????????????????????????? | | # + =%+ ??????????????????????????? | | # # !!# ????????????????????????? | | # ! # !#? ??????????????????????? | | # ??" ;w%!#?? ????????????????????? | | ?###??????#|[%############????????????????? | | ??????????# *!=; #????????????????? | | ??????????#=*%*% !! #????????????????? | | ??????????#!*=;;g @! "T" #????????????????? | | ?????????##* *#; """ #????????????????? | | ?????????# =*w=;#;;;######????????????????? | | ?????????#=[!%!= #???????????????????? | | ??????? ; =!%!% #???????????????????? | | ?????" #" ![[ #???????????????????? | | ?????" ??#T ^ ##???????????????????? | | ?????????#"$% """ #????????????????????? | | ?????????# / """ #????????????????????? | | ?????????# ^ """ #????????????????????? | | ?????????#^ #????????????????????? | | ?????????# %#????????????????????? | | ?????????# """ #????????????????????? | | ????????? """ ????????????????????? | | ???????? "?? ????????????????????? | | ??????? ??? ???????????????????? | | ???????? ??? ???????????????????? | | ???????? ??? ???????????????????? | | ??????????######???? ?????????????????????? | | ??????????????????????????????????????????? | | ??????????????????????????????????????????? | | ??????????????????????????????????????????? | | ??????????????????????????????????????????? | | ??????????????????????????????????????????? | | ??????????????????????????????????????????? | +----------------------------------------------------+ Best States ------------- Heat Dissipation 59 Energy Generation 14 Energy Capacity 280 Matter Stores 300 Matter Capacity 300 Sight Range 16 Robot Scan Range 15 Terrain Scan Density 10 ECM Strength 1 Additional Mass Support 9 Armor Coverage 750 Evasion (%) 55 Recoil Reduction 2 Particle Charging 15 Offensive Hacking 10 Item Schematics ----------------- Imp. Treads | -9/Materials | Scanalyzed Robot Schematics ------------------ None Fabricated ------------ Nothing Alien Tech Used ----------------- None Achievements -------------- Shopping List Challenges ------------ None Game ------ Seed DerelictCobblerConstruct Manual? 0 Play Time 00:53:08 Cumulative 4.9 hours Start 2024.04.02 @ 09:16:10 End 2024.04.02 @ 10:15:22 Sessions 1 Manual Loads 0 Difficulty Rogue Special Mode None Game No. 4 Rogue 4 Adventurer 0 Explorer 0 Win Type - Total 0 Types 0/0/0/0/0/0/0/0/0 Lore% 2 Gallery% 9 Achievement% 9 Wizard Run 0 Options --------- Layout 1 ASCII 0 Keyboard 0 Movement Mouse Keybinds 0 Fullscreen 1 Font 24/Smallcaps Map View 50x35 Zoom Use 0% Tactical HUD 1 Map Filters NONE Filters NONE Steam 1 RUN: f7bdb98f-f435-429c-9b96-a190b31b441c